{"text_format":"3","workbook":"xlsx","n_sheets":2,"sheets":["Laiteluettelo","Asetukset"],"not_rendered":{"defined_names":4},"read":"whole","date_system":"1900"}

{"sheet":"Laiteluettelo","index":0,"n_rows":35,"n_cols":6,"rows_kept":35,"merged":[[0,1,2,2],[0,4,0,5]]}
[]
[{"$nulls":4},"Korosta kohteet, jotka ovat vanhempia kuin:"]
[{"$nulls":4},1]
[]
[null,"LAITTEEN TUNNUS","KOHTEEN NIMI","VASTUUHENKILÖ","LUOVUTUSPÄIVÄ","KÄYTTÖAIKA"]
[null,"KOHDE0001","tuoli","Työntekijä 1",{"$f":"TODAY()-25","v":"2012-11-24"},{"$f":"IF(tblEquipmentInventory[[#This Row],[LUOVUTUSPÄIVÄ]]<>\"\",TODAY()-tblEquipmentInventory[[#This Row],[LUOVUTUSPÄIVÄ]],\"\")","v":{"v":25,"d":"25 päivää"}}]
[null,"KOHDE0002","lasertulostin","Työntekijä 2",{"$f":"TODAY()-479","v":"2011-08-28"},{"$f":"IF(tblEquipmentInventory[[#This Row],[LUOVUTUSPÄIVÄ]]<>\"\",TODAY()-tblEquipmentInventory[[#This Row],[LUOVUTUSPÄIVÄ]],\"\")","v":{"v":479,"d":"479 päivää"}}]
[null,"KOHDE0003","skanneri","Työntekijä 3",{"$f":"TODAY()-177","v":"2012-06-25"},{"$f":"IF(tblEquipmentInventory[[#This Row],[LUOVUTUSPÄIVÄ]]<>\"\",TODAY()-tblEquipmentInventory[[#This Row],[LUOVUTUSPÄIVÄ]],\"\")","v":{"v":177,"d":"177 päivää"}}]
[null,"KOHDE0004","lasertulostin","Työntekijä 7",{"$f":"TODAY()-18","v":"2012-12-01"},{"$f":"IF(tblEquipmentInventory[[#This Row],[LUOVUTUSPÄIVÄ]]<>\"\",TODAY()-tblEquipmentInventory[[#This Row],[LUOVUTUSPÄIVÄ]],\"\")","v":{"v":18,"d":"18 päivää"}}]
[null,"KOHDE0005","kahvinkeitin","Työntekijä 20",{"$f":"TODAY()-227","v":"2012-05-06"},{"$f":"IF(tblEquipmentInventory[[#This Row],[LUOVUTUSPÄIVÄ]]<>\"\",TODAY()-tblEquipmentInventory[[#This Row],[LUOVUTUSPÄIVÄ]],\"\")","v":{"v":227,"d":"227 päivää"}}]
[null,"KOHDE0006","skanneri","Työntekijä 14",{"$f":"TODAY()-50","v":"2012-10-30"},{"$f":"IF(tblEquipmentInventory[[#This Row],[LUOVUTUSPÄIVÄ]]<>\"\",TODAY()-tblEquipmentInventory[[#This Row],[LUOVUTUSPÄIVÄ]],\"\")","v":{"v":50,"d":"50 päivää"}}]
[null,"KOHDE0007","pöytä","Työntekijä 4",{"$f":"TODAY()-120","v":"2012-08-21"},{"$f":"IF(tblEquipmentInventory[[#This Row],[LUOVUTUSPÄIVÄ]]<>\"\",TODAY()-tblEquipmentInventory[[#This Row],[LUOVUTUSPÄIVÄ]],\"\")","v":{"v":120,"d":"120 päivää"}}]
[null,"KOHDE0008","kopiokone","Työntekijä 12",{"$f":"TODAY()-499","v":"2011-08-08"},{"$f":"IF(tblEquipmentInventory[[#This Row],[LUOVUTUSPÄIVÄ]]<>\"\",TODAY()-tblEquipmentInventory[[#This Row],[LUOVUTUSPÄIVÄ]],\"\")","v":{"v":499,"d":"499 päivää"}}]
[null,"KOHDE0009","lisänäyttö","Työntekijä 8",{"$f":"TODAY()-30","v":"2012-11-19"},{"$f":"IF(tblEquipmentInventory[[#This Row],[LUOVUTUSPÄIVÄ]]<>\"\",TODAY()-tblEquipmentInventory[[#This Row],[LUOVUTUSPÄIVÄ]],\"\")","v":{"v":30,"d":"30 päivää"}}]
[null,"KOHDE0010","luonnoslehtiö","Työntekijä 19",{"$f":"TODAY()-50","v":"2012-10-30"},{"$f":"IF(tblEquipmentInventory[[#This Row],[LUOVUTUSPÄIVÄ]]<>\"\",TODAY()-tblEquipmentInventory[[#This Row],[LUOVUTUSPÄIVÄ]],\"\")","v":{"v":50,"d":"50 päivää"}}]
[null,"KOHDE0011","kopiokone","Työntekijä 12",{"$f":"TODAY()-450","v":"2011-09-26"},{"$f":"IF(tblEquipmentInventory[[#This Row],[LUOVUTUSPÄIVÄ]]<>\"\",TODAY()-tblEquipmentInventory[[#This Row],[LUOVUTUSPÄIVÄ]],\"\")","v":{"v":450,"d":"450 päivää"}}]
[null,"KOHDE0012","taustamalli","Työntekijä 18",{"$f":"TODAY()-420","v":"2011-10-26"},{"$f":"IF(tblEquipmentInventory[[#This Row],[LUOVUTUSPÄIVÄ]]<>\"\",TODAY()-tblEquipmentInventory[[#This Row],[LUOVUTUSPÄIVÄ]],\"\")","v":{"v":420,"d":"420 päivää"}}]
[null,"KOHDE0013","lisänäyttö","Työntekijä 8",{"$f":"TODAY()-250","v":"2012-04-13"},{"$f":"IF(tblEquipmentInventory[[#This Row],[LUOVUTUSPÄIVÄ]]<>\"\",TODAY()-tblEquipmentInventory[[#This Row],[LUOVUTUSPÄIVÄ]],\"\")","v":{"v":250,"d":"250 päivää"}}]
[null,"KOHDE0014","kahvinkeitin","Työntekijä 9",{"$f":"TODAY()-45","v":"2012-11-04"},{"$f":"IF(tblEquipmentInventory[[#This Row],[LUOVUTUSPÄIVÄ]]<>\"\",TODAY()-tblEquipmentInventory[[#This Row],[LUOVUTUSPÄIVÄ]],\"\")","v":{"v":45,"d":"45 päivää"}}]
[null,"KOHDE0015","taustamalli","Työntekijä 13",{"$f":"TODAY()-502","v":"2011-08-05"},{"$f":"IF(tblEquipmentInventory[[#This Row],[LUOVUTUSPÄIVÄ]]<>\"\",TODAY()-tblEquipmentInventory[[#This Row],[LUOVUTUSPÄIVÄ]],\"\")","v":{"v":502,"d":"502 päivää"}}]
[null,"KOHDE0016","skanneri","Työntekijä 1",{"$f":"TODAY()-350","v":"2012-01-04"},{"$f":"IF(tblEquipmentInventory[[#This Row],[LUOVUTUSPÄIVÄ]]<>\"\",TODAY()-tblEquipmentInventory[[#This Row],[LUOVUTUSPÄIVÄ]],\"\")","v":{"v":350,"d":"350 päivää"}}]
[null,"KOHDE0017","kopiokone","Työntekijä 19",{"$f":"TODAY()-125","v":"2012-08-16"},{"$f":"IF(tblEquipmentInventory[[#This Row],[LUOVUTUSPÄIVÄ]]<>\"\",TODAY()-tblEquipmentInventory[[#This Row],[LUOVUTUSPÄIVÄ]],\"\")","v":{"v":125,"d":"125 päivää"}}]
[null,"KOHDE0018","luonnoslehtiö","Työntekijä 15",{"$f":"TODAY()-90","v":"2012-09-20"},{"$f":"IF(tblEquipmentInventory[[#This Row],[LUOVUTUSPÄIVÄ]]<>\"\",TODAY()-tblEquipmentInventory[[#This Row],[LUOVUTUSPÄIVÄ]],\"\")","v":{"v":90,"d":"90 päivää"}}]
[null,"KOHDE0019","tuoli","Työntekijä 16",{"$f":"TODAY()-730","v":"2010-12-20"},{"$f":"IF(tblEquipmentInventory[[#This Row],[LUOVUTUSPÄIVÄ]]<>\"\",TODAY()-tblEquipmentInventory[[#This Row],[LUOVUTUSPÄIVÄ]],\"\")","v":{"v":730,"d":"730 päivää"}}]
[null,"KOHDE0020","pölynpyyhin (1 pakkaus)","Työntekijä 3",{"$f":"TODAY()-540","v":"2011-06-28"},{"$f":"IF(tblEquipmentInventory[[#This Row],[LUOVUTUSPÄIVÄ]]<>\"\",TODAY()-tblEquipmentInventory[[#This Row],[LUOVUTUSPÄIVÄ]],\"\")","v":{"v":540,"d":"540 päivää"}}]
[null,"KOHDE0021","lasertulostin","Työntekijä 7",{"$f":"TODAY()-18","v":"2012-12-01"},{"$f":"IF(tblEquipmentInventory[[#This Row],[LUOVUTUSPÄIVÄ]]<>\"\",TODAY()-tblEquipmentInventory[[#This Row],[LUOVUTUSPÄIVÄ]],\"\")","v":{"v":18,"d":"18 päivää"}}]
[null,"KOHDE0022","kannettava tietokone","Työntekijä 8",{"$f":"TODAY()-283","v":"2012-03-11"},{"$f":"IF(tblEquipmentInventory[[#This Row],[LUOVUTUSPÄIVÄ]]<>\"\",TODAY()-tblEquipmentInventory[[#This Row],[LUOVUTUSPÄIVÄ]],\"\")","v":{"v":283,"d":"283 päivää"}}]
[null,"KOHDE0023","taustamalli","Työntekijä 9",{"$f":"TODAY()-479","v":"2011-08-28"},{"$f":"IF(tblEquipmentInventory[[#This Row],[LUOVUTUSPÄIVÄ]]<>\"\",TODAY()-tblEquipmentInventory[[#This Row],[LUOVUTUSPÄIVÄ]],\"\")","v":{"v":479,"d":"479 päivää"}}]
[null,"KOHDE0024","lasertulostin","Työntekijä 19",{"$f":"TODAY()-355","v":"2011-12-30"},{"$f":"IF(tblEquipmentInventory[[#This Row],[LUOVUTUSPÄIVÄ]]<>\"\",TODAY()-tblEquipmentInventory[[#This Row],[LUOVUTUSPÄIVÄ]],\"\")","v":{"v":355,"d":"355 päivää"}}]
[null,"KOHDE0025","pöytä","Työntekijä 7",{"$f":"TODAY()-28","v":"2012-11-21"},{"$f":"IF(tblEquipmentInventory[[#This Row],[LUOVUTUSPÄIVÄ]]<>\"\",TODAY()-tblEquipmentInventory[[#This Row],[LUOVUTUSPÄIVÄ]],\"\")","v":{"v":28,"d":"28 päivää"}}]
[null,"KOHDE0026","luonnoslehtiö","Työntekijä 8",{"$f":"TODAY()-28","v":"2012-11-21"},{"$f":"IF(tblEquipmentInventory[[#This Row],[LUOVUTUSPÄIVÄ]]<>\"\",TODAY()-tblEquipmentInventory[[#This Row],[LUOVUTUSPÄIVÄ]],\"\")","v":{"v":28,"d":"28 päivää"}}]
[null,"KOHDE0027","kannettava tietokone","Työntekijä 19",{"$f":"TODAY()-736","v":"2010-12-14"},{"$f":"IF(tblEquipmentInventory[[#This Row],[LUOVUTUSPÄIVÄ]]<>\"\",TODAY()-tblEquipmentInventory[[#This Row],[LUOVUTUSPÄIVÄ]],\"\")","v":{"v":736,"d":"736 päivää"}}]
[null,"KOHDE0028","pöytä","Työntekijä 12",{"$f":"TODAY()-68","v":"2012-10-12"},{"$f":"IF(tblEquipmentInventory[[#This Row],[LUOVUTUSPÄIVÄ]]<>\"\",TODAY()-tblEquipmentInventory[[#This Row],[LUOVUTUSPÄIVÄ]],\"\")","v":{"v":68,"d":"68 päivää"}}]
[null,"KOHDE0029","skanneri","Työntekijä 14",{"$f":"TODAY()-67","v":"2012-10-13"},{"$f":"IF(tblEquipmentInventory[[#This Row],[LUOVUTUSPÄIVÄ]]<>\"\",TODAY()-tblEquipmentInventory[[#This Row],[LUOVUTUSPÄIVÄ]],\"\")","v":{"v":67,"d":"67 päivää"}}]
[null,"KOHDE0030","kahvinkeitin","Työntekijä 3",{"$f":"TODAY()-149","v":"2012-07-23"},{"$f":"IF(tblEquipmentInventory[[#This Row],[LUOVUTUSPÄIVÄ]]<>\"\",TODAY()-tblEquipmentInventory[[#This Row],[LUOVUTUSPÄIVÄ]],\"\")","v":{"v":149,"d":"149 päivää"}}]

{"sheet":"Asetukset","index":1,"n_rows":23,"n_cols":4,"rows_kept":23}
[]
[]
[null,"TYÖNTEKIJÄT",null,"KOHTEET"]
[null,"Työntekijä 1",null,"tuoli"]
[null,"Työntekijä 2",null,"kahvinkeitin"]
[null,"Työntekijä 3",null,"kopiokone"]
[null,"Työntekijä 4",null,"tietokone"]
[null,"Työntekijä 5",null,"pölynpyyhin (1 pakkaus)"]
[null,"Työntekijä 6",null,"lisänäyttö"]
[null,"Työntekijä 7",null,"mustesuihkutulostin"]
[null,"Työntekijä 8",null,"kannettava tietokone"]
[null,"Työntekijä 9",null,"lasertulostin"]
[null,"Työntekijä 10",null,"huopakynät (3-pakkaus)"]
[null,"Työntekijä 11",null,"skanneri"]
[null,"Työntekijä 12",null,"taustamalli"]
[null,"Työntekijä 13",null,"pöytä"]
[null,"Työntekijä 14",null,"USB-asema"]
[null,"Työntekijä 15",null,"luonnoslehtiö"]
[null,"Työntekijä 16"]
[null,"Työntekijä 17"]
[null,"Työntekijä 18"]
[null,"Työntekijä 19"]
[null,"Työntekijä 20"]